bitfinex/quotes_BTCUSD_20250226
["timestamp","ask_amount","ask_price","bid_price","bid_amount"]
[1740569266958,0.01758047,89224.0,89218.0,0.26232741]
[1740569267191,0.01758047,89224.0,89219.0,0.168124]
[1740569267396,0.01758047,89224.0,89219.0,0.0788]
[1740569267585,0.168108,89229.0,89219.0,0.0788]
[1740569267794,0.01758043,89223.0,89220.0,0.04676875]
[1740569268432,0.168119,89222.0,89221.0,0.3251]
[1740569268966,0.18569943,89223.0,89221.0,0.3251]
[1740569269309,0.01758043,89223.0,89221.0,0.3251]
[1740569270211,0.01758043,89223.0,89221.0,0.3291]
[1740569270373,0.01758043,89223.0,89221.0,0.37586875]
[1740569270836,0.01758043,89223.0,89221.0,0.3291]
[1740569271366,0.3,89228.0,89221.0,0.3291]
[1740569272422,0.3,89228.0,89221.0,0.3251]
[1740569272720,0.3,89228.0,89221.0,0.3271]
[1740569272924,0.0008482,89229.0,89221.0,0.3271]
[1740569273119,0.0008482,89229.0,89221.0,0.37644667]
[1740569274249,0.168108,89228.0,89221.0,0.37644667]
[1740569274423,0.168108,89228.0,89221.0,0.37444667]
[1740569274806,0.168108,89228.0,89221.0,0.37544667]
[1740569275209,0.3,89226.0,89221.0,0.37444667]
[1740569275437,0.168118,89223.0,89222.0,0.02917342]
[1740569275634,0.168119,89222.0,89221.0,0.37444667]
[1740569276035,0.18569964,89222.0,89221.0,0.37444667]
[1740569276242,0.01758064,89222.0,89221.0,0.37544667]
[1740569277434,0.01758064,89222.0,89221.0,0.37644667]
[1740569277636,0.01758064,89222.0,89221.0,0.3261]
[1740569277637,0.18569964,89222.0,89221.0,0.3261]
[1740569277914,0.18569964,89222.0,89221.0,0.3291]
[1740569279290,0.48569964,89222.0,89221.0,0.3291]
[1740569280142,0.31758064,89222.0,89221.0,0.3291]
[1740569280623,0.48569964,89222.0,89221.0,0.3291]
[1740569281472,0.468119,89222.0,89221.0,0.3291]
[1740569282086,0.3,89222.0,89221.0,0.36209902]
[1740569282300,0.3,89222.0,89221.0,0.49019902]
[1740569283320,0.468119,89222.0,89221.0,0.49019902]
[1740569285171,0.3,89222.0,89221.0,0.49019902]
[1740569286058,0.31758083,89222.0,89221.0,0.49019902]
[1740569289658,0.31758083,89222.0,89221.0,0.4572]
[1740569289890,0.01758083,89222.0,89221.0,0.4572]
[1740569290503,0.18569983,89222.0,89221.0,0.4572]
[1740569290720,0.01758083,89222.0,89221.0,0.4572]
[1740569290930,0.18569983,89222.0,89221.0,0.4572]
[1740569291135,0.18569983,89222.0,89221.0,0.50300902]
[1740569291381,0.168119,89222.0,89221.0,0.50300902]
[1740569292989,0.3,89225.0,89221.0,0.50300902]
[1740569293192,0.524153,89225.0,89221.0,0.50300902]
[1740569293639,0.168118,89223.0,89221.0,0.50300902]
[1740569293788,0.168116,89224.0,89222.0,0.05034331]
[1740569293989,0.168118,89223.0,89222.0,0.05034331]
[1740569294702,0.18569853,89223.0,89222.0,0.05034331]
[1740569294922,0.18569853,89223.0,89221.0,0.4552]
[1740569294923,0.3,89222.0,89221.0,0.4532]
[1740569295126,0.468119,89222.0,89221.0,0.4532]
[1740569295524,0.468119,89222.0,89221.0,0.3251]
[1740569295759,0.468119,89222.0,89221.0,0.3255241]
[1740569296370,0.537519,89222.0,89221.0,0.3255241]
[1740569297341,0.537519,89222.0,89221.0,0.3285241]
[1740569297790,0.537519,89222.0,89221.0,0.3255241]
[1740569297995,0.537519,89222.0,89221.0,0.3265241]
[1740569298147,0.537519,89222.0,89221.0,0.0014241]
[1740569298637,0.537519,89222.0,89221.0,1e-07]
[1740569298638,0.540519,89222.0,89221.0,1e-07]
[1740569298839,0.540519,89222.0,89208.0,0.0004244]
[1740569298840,0.468165,89198.0,89177.0,0.00952]
[1740569299033,0.468165,89198.0,89197.0,0.00011179]
[1740569299155,0.47658775,89198.0,89197.0,0.00011179]
[1740569299365,0.50731134,89198.0,89197.0,0.00011179]
[1740569299576,0.52304944,89198.0,89197.0,0.00011179]
[1740569299778,0.52489735,89198.0,89197.0,0.00011179]
[1740569301766,0.52489735,89198.0,89164.0,0.0004247]
[1740569301767,0.3,89182.0,89164.0,0.0004247]
[1740569302009,0.468227,89165.0,89164.0,0.0004247]
[1740569302209,0.468227,89165.0,89164.0,0.00084277]
[1740569302641,0.3,89165.0,89164.0,0.00084277]
[1740569302767,0.3,89165.0,89164.0,0.00876952]
[1740569303167,0.301,89165.0,89164.0,0.00876952]
[1740569303974,0.301,89165.0,89164.0,0.17699852]
[1740569304376,0.3,89165.0,89164.0,0.00876952]
[1740569304769,0.31859215,89165.0,89164.0,0.00876952]
[1740569305365,0.31959215,89165.0,89164.0,0.00876952]
[1740569305540,0.31959215,89165.0,89164.0,0.00084277]
[1740569305675,0.32059215,89165.0,89164.0,0.00184277]
[1740569306085,0.31959215,89165.0,89164.0,0.00084277]
[1740569306534,0.31959215,89165.0,89164.0,0.00184277]
[1740569306535,0.32059215,89165.0,89164.0,0.00184277]
[1740569306754,0.32059215,89165.0,89164.0,0.18266852]
[1740569306957,0.32059215,89165.0,89164.0,0.50776852]
[1740569307176,0.32059215,89165.0,89164.0,0.52230937]
[1740569307768,0.32059215,89165.0,89164.0,0.59900937]
[1740569307769,0.02059215,89165.0,89164.0,0.59900937]
[1740569307983,0.02059215,89165.0,89164.0,0.60856937]
[1740569311446,0.003,89165.0,89164.0,0.60856937]
[1740569312309,0.003,89165.0,89164.0,0.65706937]
[1740569312916,0.003,89165.0,89164.0,1.19366937]
[1740569313122,0.002,89165.0,89164.0,1.19266937]
[1740569313527,0.003,89165.0,89164.0,1.19366937]
[1740569314620,0.01858999,89165.0,89164.0,1.19366937]
[1740569314816,0.01958999,89165.0,89164.0,1.19966937]
[1740569315471,0.01958999,89165.0,89164.0,1.19970937]
[1740569320966,0.01958999,89165.0,89164.0,1.19010937]
[1740569321165,0.01958999,89165.0,89164.0,1.19970937]
[1740569321405,0.002,89165.0,89164.0,1.19970937]
[1740569326022,0.01959009,89165.0,89164.0,1.19970937]
[1740569326861,0.01959009,89165.0,89164.0,1.03148037]
[1740569327064,0.01959009,89165.0,89164.0,1.01888362]
[1740569327672,0.01959009,89165.0,89164.0,0.45814277]
[1740569327876,0.01959009,89165.0,89164.0,0.40964277]
[1740569328686,0.01959009,89165.0,89164.0,0.42418362]
[1740569330191,0.18781709,89165.0,89164.0,0.34748362]
[1740569330413,0.18781709,89165.0,89164.0,0.38227445]
[1740569330631,0.01959009,89165.0,89164.0,0.38227445]
[1740569331249,0.002,89165.0,89164.0,0.38227445]
[1740569332695,0.002,89165.0,89164.0,0.3677336]
[1740569333912,0.3,89174.0,89164.0,0.3677336]
[1740569334116,0.3,89174.0,89165.0,0.07607043]
[1740569334293,0.168217,89171.0,89165.0,0.07607043]
[1740569334502,0.168214,89172.0,89165.0,0.07607043]
[1740569335858,0.168211,89174.0,89165.0,0.24429543]
[1740569336058,0.168211,89174.0,89165.0,0.08007043]
[1740569336259,0.3,89173.0,89166.0,0.06695437]
[1740569336429,0.3,89173.0,89167.0,0.168223]
[1740569337047,0.3,89173.0,89166.0,0.23517837]
[1740569337401,0.01759067,89172.0,89166.0,0.06695437]
[1740569337552,0.5,89318.0,89167.0,0.004]
[1740569337777,0.00196249,89181.0,89169.0,0.079]
[1740569337954,0.168205,89177.0,89169.0,0.08056985]
[1740569338155,0.00834806,89186.0,89169.0,0.079]
[1740569338156,0.168202,89178.0,89169.0,0.079]
[1740569338354,0.168211,89174.0,89168.0,0.07938538]
[1740569338543,0.16821,89175.0,89169.0,0.05799291]
[1740569338741,0.224277,89176.0,89169.0,0.05799291]
[1740569338983,0.168209,89175.0,89169.0,0.05799291]
[1740569339185,0.01759037,89179.0,89169.0,0.05799291]
[1740569339355,0.01759037,89179.0,89169.0,0.05999291]
[1740569339539,0.22427,89178.0,89170.0,0.04703604]
[1740569339740,0.16821,89174.0,89170.0,0.37213604]
[1740569340366,0.168208,89175.0,89170.0,0.37213604]
[1740569340567,0.01759037,89179.0,89170.0,0.37213604]
[1740569341152,0.168203,89178.0,89170.0,0.37213604]
[1740569341322,0.168204,89177.0,89171.0,0.08464978]
[1740569341915,0.224263,89181.0,89171.0,0.08464978]
[1740569342120,0.168206,89176.0,89171.0,0.08464978]
[1740569342489,0.168205,89177.0,89171.0,0.08464978]
[1740569342691,0.168201,89179.0,89171.0,0.08464978]
[1740569342889,0.0008486,89182.0,89172.0,0.08022638]
[1740569343243,0.3,89180.0,89172.0,0.08022638]
[1740569343601,0.524266,89180.0,89170.0,0.3271]
[1740569343805,0.524266,89180.0,89171.0,0.002]
[1740569344014,0.168204,89178.0,89170.0,0.3251]
[1740569344219,0.168202,89179.0,89170.0,0.3251]
[1740569344414,0.3008486,89182.0,89172.0,0.001]
[1740569344618,0.168202,89178.0,89173.0,0.0550397]
[1740569345050,0.168201,89179.0,89173.0,0.0550397]
[1740569345271,0.168204,89177.0,89173.0,0.0550397]
[1740569345627,0.168201,89179.0,89174.0,0.3251]
[1740569345965,0.168203,89178.0,89174.0,0.3251]
[1740569346199,0.01759035,89178.0,89175.0,0.05513607]
[1740569346577,0.31759035,89178.0,89175.0,0.05513607]
[1740569346978,0.168206,89176.0,89175.0,0.05513607]
[1740569347177,0.24186135,89178.0,89175.0,0.05513607]
[1740569347384,0.3,89176.0,89175.0,0.05513607]
[1740569347986,0.3,89176.0,89175.0,0.05713607]
[1740569348368,0.168206,89177.0,89175.0,0.05713607]
[1740569348566,0.01759035,89178.0,89175.0,0.05713607]
[1740569348567,0.468206,89176.0,89175.0,0.05513607]
[1740569348933,0.468206,89176.0,89175.0,0.05813607]
[1740569349277,0.468206,89176.0,89175.0,0.05513607]
[1740569350186,0.3,89176.0,89174.0,0.3251]
[1740569350409,0.468208,89175.0,89174.0,0.3251]
[1740569350585,0.168208,89175.0,89174.0,0.3251]
[1740569350789,0.17017052,89175.0,89174.0,0.3251]
[1740569351378,0.17017052,89175.0,89174.0,0.3281]
[1740569351600,0.17017052,89175.0,89174.0,0.007]
[1740569352031,0.168227,89165.0,89164.0,0.32594277]
[1740569352242,0.168227,89165.0,89164.0,0.35857952]
[1740569354067,0.168227,89165.0,89164.0,0.36357952]
[1740569354472,0.168227,89165.0,89164.0,0.36857952]
[1740569354788,0.18581821,89165.0,89164.0,0.36857952]
[1740569356428,0.18581821,89165.0,89164.0,0.33594277]
[1740569360048,0.48581821,89165.0,89164.0,0.33594277]
[1740569360890,0.468227,89165.0,89164.0,0.33594277]
[1740569361225,0.468227,89165.0,89164.0,0.32594277]
[1740569361660,0.468227,89165.0,89164.0,0.33394277]
[1740569361991,0.468227,89165.0,89164.0,0.32994277]
[1740569363400,0.468227,89165.0,89164.0,0.00884277]
[1740569364990,0.586027,89165.0,89164.0,0.00884277]
[1740569365225,0.62838365,89165.0,89164.0,0.00884277]
[1740569366421,0.62838365,89165.0,89164.0,0.00084277]
[1740569367368,0.60361961,89165.0,89164.0,0.00084277]
[1740569367767,0.34241227,89165.0,89164.0,0.00084277]
[1740569368175,0.51063927,89165.0,89164.0,0.00084277]
[1740569369424,0.53540331,89165.0,89164.0,0.00084277]
[1740569370143,0.468229,89164.0,89163.0,0.0004247]
[1740569370342,0.50692436,89164.0,89163.0,0.00051834]
[1740569371204,0.168274,89140.0,89139.0,0.3251]
[1740569373496,0.168274,89140.0,89139.0,0.3321]
[1740569373907,0.17652878,89140.0,89139.0,0.3391]
[1740569374494,0.17652878,89140.0,89139.0,0.014]
[1740569374495,0.49450009,89140.0,89139.0,0.014]
[1740569374811,0.51013341,89140.0,89139.0,0.0902]
[1740569375033,0.51013341,89140.0,89139.0,0.014]
[1740569376171,0.168276,89139.0,89138.0,0.0004241]
[1740569376437,0.47023949,89139.0,89138.0,0.0004241]
[1740569376666,0.468276,89139.0,89138.0,0.0004241]
[1740569377155,0.468276,89139.0,89138.0,0.0014241]
[1740569377670,0.468276,89139.0,89138.0,0.0024241]
[1740569380084,0.468276,89139.0,89138.0,0.0810241]
[1740569381081,0.468276,89139.0,89138.0,0.08916893]
[1740569381735,0.468276,89139.0,89138.0,0.0810241]
[1740569386852,0.468276,89139.0,89138.0,0.1308241]
[1740569386853,0.3,89139.0,89138.0,0.1308241]
[1740569387055,0.168233,89163.0,89140.0,0.0776]
[1740569387265,0.22443106,89164.0,89147.0,0.224348]
[1740569387266,0.00012506,89164.0,89147.0,0.224348]
[1740569387488,0.168253,89151.0,89150.0,0.0821]
[1740569387897,0.168253,89151.0,89150.0,0.0917]
[1740569389049,0.18584684,89151.0,89150.0,0.0917]
[1740569389798,0.18584684,89151.0,89150.0,0.0957]
[1740569390750,0.18584684,89151.0,89150.0,0.0997]
[1740569391292,0.168253,89151.0,89150.0,0.0997]
[1740569391701,0.168253,89151.0,89150.0,0.11429]
[1740569392227,0.0008482,89163.0,89150.0,0.11429]
[1740569392435,0.168247,89155.0,89150.0,0.11429]
[1740569392979,0.0008482,89163.0,89151.0,0.168252]
[1740569393203,0.0008482,89163.0,89152.0,0.40417016]
[1740569393406,0.16825,89153.0,89152.0,0.40260002]
[1740569394421,0.18584381,89153.0,89152.0,0.40260002]
[1740569394927,0.18584381,89153.0,89152.0,0.40560002]
[1740569395508,0.18584381,89153.0,89152.0,0.3281]
[1740569395711,0.18584381,89153.0,89152.0,0.3311]
[1740569397221,0.16977189,89155.0,89152.0,0.3311]
[1740569397555,0.16825,89153.0,89152.0,0.3311]
[1740569398184,0.16825,89153.0,89152.0,0.3281]
[1740569398388,0.16825,89153.0,89152.0,0.3301]
[1740569398552,0.16825,89153.0,89152.0,0.3271]
[1740569398755,0.18584362,89153.0,89152.0,0.3271]
[1740569398964,0.18584362,89153.0,89152.0,0.3756]
[1740569399431,0.18584362,89153.0,89152.0,0.3736]
[1740569399720,0.18584362,89153.0,89152.0,0.3746]
[1740569399951,0.11347677,89155.0,89152.0,0.3746]
[1740569400067,0.16825,89153.0,89152.0,0.3776]
[1740569401595,0.16825,89153.0,89152.0,0.3746]
[1740569401796,0.0008482,89163.0,89152.0,0.3746]
[1740569402005,0.168248,89154.0,89153.0,0.05125]
[1740569403533,0.168244,89157.0,89153.0,0.05125]
[1740569403986,0.168244,89156.0,89153.0,0.05425]
[1740569404197,0.224314,89161.0,89153.0,0.05425]
[1740569404444,0.168238,89160.0,89153.0,0.05425]
[1740569404607,0.0008482,89163.0,89154.0,0.0912844]
[1740569404757,0.168242,89157.0,89154.0,0.0912844]
[1740569404987,0.168245,89156.0,89155.0,0.3251]
[1740569405201,0.224321,89158.0,89155.0,0.3251]
[1740569405438,0.168244,89156.0,89155.0,0.3251]
[1740569405646,0.168243,89157.0,89155.0,0.38072844]
[1740569405855,0.224314,89161.0,89155.0,0.38072844]
[1740569406065,0.168243,89157.0,89155.0,0.38072844]
[1740569406477,0.168244,89156.0,89155.0,0.38072844]
[1740569407779,0.168244,89156.0,89155.0,0.38272844]
[1740569408360,0.18583758,89156.0,89155.0,0.38272844]
[1740569409286,0.18583758,89156.0,89155.0,0.38472844]
[1740569409739,0.18583758,89156.0,89155.0,0.3291]
[1740569410830,0.18780045,89156.0,89155.0,0.3291]
[1740569412097,0.18780045,89156.0,89155.0,0.3271]
[1740569412334,0.18880045,89156.0,89155.0,0.3271]
[1740569412563,0.18880045,89156.0,89155.0,0.3251]
[1740569412852,0.18980045,89156.0,89155.0,0.3251]
[1740569413705,0.18980045,89156.0,89155.0,0.37044]
[1740569413706,0.17220687,89156.0,89155.0,0.37044]
[1740569415301,0.17305507,89156.0,89155.0,0.37044]
[1740569417156,0.4710922,89156.0,89155.0,0.37044]
[1740569417933,0.4700922,89156.0,89155.0,0.37044]
[1740569418237,0.48768608,89156.0,89155.0,0.37044]
[1740569418953,0.48668608,89156.0,89155.0,0.36572]
[1740569422353,0.48668608,89156.0,89155.0,0.32038]
[1740569422953,0.4690922,89156.0,89155.0,0.32038]
[1740569426038,0.4690922,89156.0,89155.0,0.318411]
[1740569428254,0.4690922,89156.0,89155.0,0.3188351]
[1740569430192,0.48668607,89156.0,89155.0,0.3188351]
[1740569431293,0.48668607,89156.0,89155.0,0.36359102]
[1740569431524,0.4690922,89156.0,89155.0,0.36359102]
[1740569432142,0.23370779,89156.0,89155.0,0.36359102]
[1740569432370,0.168244,89156.0,89155.0,0.36359102]
[1740569434855,0.168244,89156.0,89155.0,0.36359102]
[1740569435846,0.48583787,89156.0,89155.0,0.36359102]
[1740569436390,0.48583787,89156.0,89155.0,0.3188351]
[1740569438782,0.01759387,89156.0,89155.0,0.5661811]
[1740569438989,0.01759387,89156.0,89155.0,0.6144811]
[1740569439585,0.0008482,89156.0,89155.0,0.4462351]
[1740569440092,0.0018482,89156.0,89155.0,0.4462351]
[1740569440292,0.4690922,89156.0,89155.0,0.51333492]
[1740569440719,0.4690922,89156.0,89155.0,0.51533492]
[1740569440927,0.4720922,89156.0,89155.0,0.51533492]
[1740569441468,0.4690922,89156.0,89155.0,0.4482351]
[1740569445186,0.0008482,89156.0,89155.0,0.4482351]
[1740569445625,0.0008482,89156.0,89155.0,0.6164811]
[1740569446218,0.0008482,89156.0,89155.0,0.64058195]
[1740569446565,0.0008482,89156.0,89155.0,0.47233595]
[1740569446764,0.0008482,89156.0,89155.0,0.51961195]
[1740569446893,0.0008482,89156.0,89155.0,0.51761195]
[1740569447329,0.0008482,89156.0,89155.0,0.69385795]
[1740569449429,0.01843996,89156.0,89155.0,0.69385795]
[1740569449649,0.01843996,89156.0,89155.0,1.23045795]
[1740569450881,0.0008482,89156.0,89155.0,1.23045795]
[1740569455438,0.0184399,89156.0,89155.0,1.23045795]
[1740569458253,0.3,89167.0,89157.0,0.224323]
[1740569458616,0.168225,89166.0,89161.0,0.01454085]
[1740569458811,0.168225,89166.0,89163.0,0.08994085]
[1740569459214,0.168228,89165.0,89163.0,0.08994085]
[1740569459540,0.168229,89164.0,89163.0,0.08994085]
[1740569459783,0.168229,89164.0,89163.0,0.19582173]
[1740569460477,0.168229,89164.0,89163.0,0.19682173]
[1740569460714,0.0185917,89165.0,89163.0,0.19582173]
[1740569460917,0.0175917,89165.0,89163.0,0.19582173]
[1740569461087,0.0175917,89165.0,89163.0,0.19882173]
[1740569461295,0.0175917,89165.0,89164.0,0.11385696]
[1740569461491,0.1858187,89165.0,89164.0,0.11385696]
[1740569461714,0.168227,89165.0,89164.0,0.11385696]
[1740569463153,9.385e-05,89167.0,89164.0,0.11385696]
[1740569463359,0.0008482,89165.0,89164.0,0.11585696]
[1740569464426,0.0008482,89165.0,89164.0,0.97086796]
[1740569466925,0.1690752,89165.0,89164.0,0.97086796]
[1740569467826,0.18666687,89165.0,89164.0,0.97086796]
[1740569468933,0.48666687,89165.0,89164.0,0.857011]
[1740569469330,0.42161782,89165.0,89164.0,0.857011]
[1740569469776,0.42161782,89165.0,89164.0,0.320411]
[1740569470168,0.42261782,89165.0,89164.0,0.320411]
[1740569470514,0.42261782,89165.0,89164.0,0.318411]
[1740569470738,0.42161782,89165.0,89164.0,0.318411]
[1740569470919,0.42461782,89165.0,89164.0,0.318411]
[1740569471119,0.42461782,89165.0,89164.0,0.319411]
[1740569471434,0.44221045,89165.0,89164.0,0.3512521]
[1740569472883,0.44221045,89165.0,89164.0,0.318411]
[1740569473286,0.468242,89157.0,89156.0,0.318411]
[1740569474923,0.468242,89157.0,89156.0,0.320411]
[1740569476634,0.48583515,89157.0,89156.0,0.318411]
[1740569477118,0.48683515,89157.0,89156.0,0.319411]
[1740569481332,0.469242,89157.0,89156.0,0.319411]
[1740569484544,0.469242,89157.0,89139.0,0.5366]
[1740569484545,0.168274,89140.0,89139.0,0.28465895]
[1740569484740,0.468274,89140.0,89139.0,0.28465895]
[1740569485955,0.4683209,89140.0,89139.0,0.28465895]
[1740569486362,0.4703209,89140.0,89139.0,0.28465895]
[1740569487443,0.48791702,89140.0,89139.0,0.28465895]
[1740569487616,0.48791702,89140.0,89139.0,0.32075725]
[1740569487828,0.49621411,89140.0,89139.0,0.32075725]
[1740569488029,0.49621411,89140.0,89139.0,0.28465895]
[1740569488190,0.468276,89139.0,89132.0,0.36055895]
[1740569488392,0.468276,89139.0,89132.0,0.28465895]
[1740569489526,0.470276,89139.0,89132.0,0.28465895]
[1740569489956,0.470276,89139.0,89138.0,1e-07]
[1740569490201,0.468289,89132.0,89117.0,0.32985895]
[1740569490368,0.468289,89132.0,89131.0,0.0003842]
[1740569491763,0.470289,89132.0,89131.0,0.0003842]
[1740569492552,0.49117734,89132.0,89131.0,0.0003842]
[1740569495029,0.52679879,89132.0,89131.0,0.0003842]
[1740569496738,0.52879879,89132.0,89131.0,0.0003842]
[1740569497141,0.52679879,89132.0,89131.0,0.0003842]
[1740569497356,0.52679879,89132.0,89131.0,2e-07]
[1740569497357,0.60019879,89132.0,89131.0,2e-07]
[1740569497610,0.59819879,89132.0,89131.0,2e-07]
[1740569497820,0.59719879,89132.0,89131.0,2e-07]
[1740569498167,0.60219879,89132.0,89131.0,0.0010002]
[1740569498376,0.60619879,89132.0,89131.0,0.0010002]
[1740569498594,0.60204719,89132.0,89131.0,2e-07]
[1740569498802,0.53964719,89132.0,89131.0,2e-07]
[1740569499686,0.53264719,89132.0,89131.0,2e-07]
[1740569500001,0.53864719,89132.0,89131.0,0.0010002]
[1740569500214,0.37035819,89132.0,89119.0,0.0819]
[1740569500514,0.468327,89112.0,89111.0,0.0002]
[1740569501840,0.46843954,89112.0,89111.0,0.0002]
[1740569502821,0.48258865,89112.0,89111.0,0.0002]
[1740569503237,0.48258865,89112.0,89111.0,0.0042]
[1740569504379,0.49118405,89112.0,89111.0,0.0042]
[1740569506432,0.49118405,89112.0,89111.0,0.0945259]
[1740569507020,0.49118405,89112.0,89111.0,0.0042]
[1740569507191,0.49118405,89112.0,89111.0,0.0002]
[1740569511540,0.49118405,89112.0,89111.0,0.0006242]
[1740569525444,0.0008484,89131.0,89112.0,0.0754]
[1740569525666,0.224391,89130.0,89114.0,0.0754]
[1740569525869,0.3,89116.0,89114.0,0.0754]
[1740569526042,0.468321,89115.0,89114.0,0.0754]
[1740569526265,0.47676929,89115.0,89114.0,0.0754]
[1740569527061,0.47676929,89115.0,89114.0,0.0764]
[1740569527260,0.47676929,89115.0,89114.0,0.08885666]
[1740569527828,0.30844829,89115.0,89114.0,0.09085666]
[1740569530427,0.47676929,89115.0,89114.0,0.0774]
[1740569530628,0.30844829,89115.0,89114.0,0.0774]
[1740569533834,0.30844829,89115.0,89114.0,0.245723]
[1740569534029,0.0694,89152.0,89117.0,0.01454085]
[1740569534236,0.168295,89129.0,89128.0,0.0751]
[1740569534434,0.468295,89129.0,89128.0,0.0751]
[1740569534928,0.168312,89120.0,89119.0,0.0777]
[1740569536126,0.168323,89114.0,89113.0,0.0772]
[1740569536338,0.168327,89112.0,89111.0,0.0006242]
[1740569536536,0.468327,89112.0,89111.0,0.0006242]
[1740569538249,0.468327,89112.0,89111.0,0.01294662]
[1740569539047,0.468327,89112.0,89111.0,0.01594662]
[1740569539422,0.3,89112.0,89111.0,0.01294662]
[1740569539768,0.468327,89112.0,89111.0,0.01594662]
[1740569539949,0.3,89112.0,89111.0,0.01594662]
[1740569540358,0.468327,89112.0,89111.0,0.01594662]
[1740569540534,0.468327,89112.0,89111.0,0.01294662]
[1740569540736,0.468327,89112.0,89111.0,0.01594662]
[1740569541116,0.468327,89112.0,89111.0,0.0036242]
[1740569546300,0.3,89112.0,89111.0,0.0036242]
[1740569546615,0.01857044,89131.0,89111.0,0.0036242]
[1740569546823,0.02053409,89131.0,89112.0,0.07987092]
[1740569547019,0.3,89118.0,89112.0,0.07987092]
[1740569547220,0.3,89115.0,89113.0,0.05232791]
[1740569547613,0.468321,89115.0,89113.0,0.05232791]
[1740569547821,0.3,89115.0,89113.0,0.05232791]
[1740569548211,0.224422,89118.0,89113.0,0.05232791]
[1740569548415,0.225265,89120.0,89113.0,0.05232791]
[1740569548617,0.3,89118.0,89112.0,0.0783]
[1740569548818,0.468316,89118.0,89112.0,0.0783]
[1740569549153,0.3,89118.0,89112.0,0.0783]
[1740569549802,0.468317,89118.0,89112.0,0.0783]
[1740569550010,0.225265,89120.0,89119.0,0.168314]
[1740569550011,0.000848,89120.0,89119.0,0.168314]
[1740569550181,0.000848,89120.0,89119.0,0.09905849]
[1740569550767,0.16916,89120.0,89119.0,0.09905849]
[1740569550966,0.000848,89120.0,89119.0,0.09905849]
[1740569551424,0.168312,89121.0,89119.0,0.09905849]
[1740569551580,0.168312,89120.0,89119.0,0.09805849]
[1740569552224,0.168311,89121.0,89119.0,0.10105849]
[1740569552379,0.168311,89121.0,89120.0,0.03336223]
[1740569552580,0.168311,89121.0,89119.0,0.10105849]
[1740569552879,0.168312,89120.0,89119.0,0.10105849]
[1740569553082,0.168312,89120.0,89119.0,0.09805849]
[1740569553301,0.16831,89121.0,89119.0,0.10005849]
[1740569553720,0.168309,89122.0,89119.0,0.10005849]
[1740569553931,0.168309,89122.0,89120.0,0.03326203]
[1740569554379,0.16831,89121.0,89120.0,0.03326203]
[1740569554795,0.168312,89120.0,89119.0,0.09805849]
[1740569554985,0.00865038,89129.0,89119.0,0.0761]
[1740569555199,0.168312,89121.0,89119.0,0.0781]
[1740569555405,0.168312,89121.0,89119.0,0.0761]
[1740569555631,0.00865038,89129.0,89120.0,0.002]
[1740569555826,0.16831,89121.0,89120.0,0.002]
[1740569556027,0.168312,89120.0,89119.0,0.0761]
[1740569556231,0.168312,89120.0,89119.0,0.09013408]
[1740569557130,0.168311,89121.0,89119.0,0.09013408]
[1740569558192,0.16831,89122.0,89119.0,0.09013408]
[1740569558611,0.168311,89121.0,89119.0,0.09255808]
[1740569558782,0.168312,89120.0,89119.0,0.09255808]
[1740569559197,0.168312,89120.0,89119.0,0.09055808]
[1740569559594,0.168312,89120.0,89119.0,0.09255808]
[1740569560360,0.168312,89120.0,89119.0,0.076524]
[1740569560543,0.168312,89120.0,89119.0,0.000424]
[1740569560759,0.20393345,89120.0,89119.0,0.000424]
[1740569560963,0.168312,89120.0,89119.0,0.000424]
[1740569561926,0.169312,89120.0,89119.0,0.003424]
[1740569562155,0.169312,89120.0,89119.0,0.000424]
[1740569562442,0.469312,89120.0,89119.0,0.001424]
[1740569562610,0.50493345,89120.0,89119.0,0.001424]
[1740569563610,0.469312,89120.0,89119.0,0.001424]
[1740569563815,0.469312,89120.0,89119.0,0.000424]
[1740569564214,0.468312,89120.0,89119.0,0.000424]
[1740569564485,0.469312,89120.0,89119.0,0.000424]
[1740569565269,0.468312,89120.0,89119.0,0.000424]
[1740569565628,0.002,89120.0,89119.0,0.000424]
[1740569565832,0.00396383,89120.0,89119.0,0.000424]
[1740569566256,0.17227583,89120.0,89119.0,0.000424]
[1740569567210,0.17027583,89120.0,89119.0,0.000424]
[1740569567358,0.17227583,89120.0,89119.0,0.000424]
[1740569568795,0.538727,89112.0,89111.0,2e-07]
[1740569569196,0.57434845,89112.0,89111.0,2e-07]
[1740569569399,0.538727,89112.0,89111.0,2e-07]
[1740569569881,0.543727,89112.0,89111.0,2e-07]
[1740569571274,0.550727,89112.0,89111.0,2e-07]
[1740569571815,0.480327,89112.0,89111.0,2e-07]
[1740569572389,0.180327,89112.0,89111.0,2e-07]
[1740569572605,0.180327,89112.0,89111.0,0.00776022]
[1740569572815,0.224428,89116.0,89111.0,0.00776022]
[1740569573037,0.168327,89112.0,89111.0,0.00776022]
[1740569573915,0.175327,89112.0,89111.0,0.00776022]
[1740569574266,0.168327,89112.0,89111.0,2e-07]
[1740569574679,0.17329083,89112.0,89111.0,2e-07]
[1740569576275,0.17429083,89112.0,89111.0,2e-07]
[1740569578818,0.47429083,89112.0,89111.0,2e-07]
[1740569579132,0.472327,89112.0,89111.0,2e-07]
[1740569582549,0.49325847,89112.0,89111.0,2e-07]
[1740569582787,0.5017207,89112.0,89111.0,2e-07]
[1740569583949,0.51218515,89112.0,89111.0,2e-07]
[1740569586071,0.5017207,89112.0,89111.0,2e-07]
[1740569586540,0.5017207,89112.0,89111.0,0.0825002]
[1740569586777,0.2017207,89112.0,89111.0,0.09564022]
[1740569587706,0.1977207,89112.0,89111.0,0.09564022]
[1740569587940,0.2007207,89112.0,89111.0,0.09564022]
[1740569588387,0.17978923,89112.0,89111.0,0.09564022]
[1740569588789,0.2007536,89112.0,89111.0,0.09564022]
[1740569589003,0.5017536,89112.0,89111.0,0.0825002]
[1740569589213,0.5007536,89112.0,89111.0,0.0825002]
[1740569589411,0.4977536,89112.0,89111.0,2e-07]
[1740569589615,0.4977536,89112.0,89111.0,0.0050002]
[1740569590028,0.4977536,89112.0,89111.0,1e-08]
[1740569590199,0.4977536,89112.0,89097.0,0.0761]
[1740569590200,0.468353,89098.0,89097.0,0.0761]
[1740569591431,0.468353,89098.0,89097.0,0.07622506]
[1740569591877,0.48931737,89098.0,89097.0,0.07622506]